fUSD/lending_fUSD_20260608
["ID","MTS","AMOUNT","RATE_DAILY","PERIOD"]
[424416240,1780858258000,-200.0,0.00028178,2]
[424416187,1780858258000,-198.46,0.00027671,13]
[424416230,1780858258000,-215.83393831,0.00028,10]
[424416220,1780858258000,-255.89,0.00027859,2]
[424416229,1780858258000,-215.83393831,0.00028,7]
[424416221,1780858258000,-575.32,0.00027888,2]
[424416222,1780858258000,-278.89148441,0.0002789,30]
[424416190,1780858258000,-180.4825,0.00027671,30]
[424416192,1780858258000,-600.0,0.0002774,60]
[424416189,1780858258000,-224.01,0.00027671,30]
[424416194,1780858258000,-500.0,0.00027752,2]
[424416188,1780858258000,-224.01,0.00027671,30]
[424416191,1780858258000,-2322.0,0.0002772,3]
[424416197,1780858258000,-396.09,0.00027775,2]
[424416196,1780858258000,-482.18,0.00027775,2]
[424416198,1780858258000,-573.09,0.00027775,2]
[424416199,1780858258000,-185.06,0.00027775,2]
[424416201,1780858258000,-185.06,0.00027775,2]
[424416195,1780858258000,-396.09,0.00027775,2]
[424416205,1780858258000,-481.76,0.0002778,2]
[424416212,1780858258000,-184.77,0.0002778,2]
[424416211,1780858258000,-185.06,0.0002778,2]
[424416207,1780858258000,-575.32,0.0002778,2]
[424416210,1780858258000,-185.06,0.0002778,2]
[424416209,1780858258000,-185.06,0.0002778,2]
[424416208,1780858258000,-576.57,0.0002778,2]
[424416204,1780858258000,-396.09,0.00027775,2]
[424416206,1780858258000,-185.06,0.0002778,2]
[424416203,1780858258000,-396.09,0.00027775,2]
[424416200,1780858258000,-482.18,0.00027775,2]
[424416202,1780858258000,-575.32,0.00027775,2]
[424416282,1780858259000,-151.0,0.00028602,7]
[424416277,1780858259000,-3828.0,0.000286,7]
[424416284,1780858259000,-167.485429,0.00028602,7]
[424416281,1780858259000,-648.16,0.00028602,2]
[424416280,1780858259000,-184.83,0.00028602,2]
[424416268,1780858259000,-168.3,0.00028493,2]
[424416279,1780858259000,-643.92,0.00028602,2]
[424416276,1780858259000,-151.0,0.000286,7]
[424416263,1780858259000,-356.0,0.00028404,14]
[424416265,1780858259000,-1000.0,0.00028424,7]
[424416285,1780858259000,-167.485429,0.00028602,7]
[424416278,1780858259000,-442.62,0.00028602,2]
[424416287,1780858259000,-167.485421,0.00028602,7]
[424416292,1780858259000,-396.09,0.00028602,2]
[424416283,1780858259000,-151.0,0.00028602,7]
[424416289,1780858259000,-644.0,0.00028602,2]
[424416288,1780858259000,-185.06,0.00028602,2]
[424416293,1780858259000,-644.0,0.00028602,2]
[424416296,1780858259000,-396.09,0.00028602,2]
[424416298,1780858259000,-151.0,0.00028605,2]
[424416295,1780858259000,-575.32,0.00028602,2]
[424416297,1780858259000,-185.06,0.00028604,2]
[424416294,1780858259000,-572.97,0.00028602,2]
[424416290,1780858259000,-396.0,0.00028602,2]
[424416291,1780858259000,-482.18,0.00028602,2]
[424416303,1780858259000,-1453.22,0.0002863,7]
[424416269,1780858259000,-160.0,0.00028507,3]
[424416286,1780858259000,-167.485429,0.00028602,7]
[424416275,1780858259000,-396.09,0.00028597,2]
[424416244,1780858259000,-198.47,0.00028219,13]
[424416266,1780858259000,-1000.0,0.00028442,7]
[424416247,1780858259000,-232.40957034,0.00028219,30]
[424416243,1780858259000,-152.0,0.00028212,22]
[424416302,1780858259000,-1453.08,0.0002863,30]
[424416246,1780858259000,-180.4825,0.00028219,30]
[424416249,1780858259000,-1173.06,0.00028227,7]
[424416242,1780858259000,-707.0,0.00028205,3]
[424416248,1780858259000,-1370.23,0.00028227,7]
[424416245,1780858259000,-198.46,0.00028219,13]
[424416250,1780858259000,-500.0,0.00028229,2]
[424416253,1780858259000,-615.03,0.00028311,2]
[424416257,1780858259000,-450.0,0.00028344,2]
[424416258,1780858259000,-437.4,0.00028344,2]
[424416261,1780858259000,-385.57415209,0.00028397,7]
[424416252,1780858259000,-544.0,0.00028306,7]
[424416254,1780858259000,-2351.0,0.00028315,3]
[424416256,1780858259000,-160.0,0.00028337,3]
[424416260,1780858259000,-216.92054713,0.00028397,7]
[424416255,1780858259000,-2322.0,0.00028337,3]
[424416259,1780858259000,-160.0,0.00028384,3]
[424416251,1780858259000,-1175.4,0.00028267,2]
[424416262,1780858259000,-406.881778,0.00028397,7]
[424416264,1780858259000,-2388.85,0.0002842,7]
[424416272,1780858259000,-1000.0,0.00028567,7]
[424416273,1780858259000,-152.0,0.00028568,23]
[424416271,1780858259000,-1200.0,0.00028562,60]
[424416274,1780858259000,-396.09,0.00028597,2]
[424416270,1780858259000,-615.03,0.00028539,2]
[424416267,1780858259000,-2322.0,0.00028461,3]
[424416307,1780858259000,-866.11,0.0002863,2]
[424416299,1780858259000,-151.0,0.00028607,2]
[424416306,1780858259000,-871.79,0.0002863,2]
[424416343,1780858259000,-363.2158941,0.00028806,2]
[424416344,1780858259000,-319.22792104,0.00028806,2]
[424416335,1780858259000,-198.46,0.00028767,13]
[424416345,1780858259000,-319.50760492,0.00028806,2]
[424416346,1780858259000,-347.80801064,0.00028806,2]
[424416341,1780858259000,-889.82,0.00028797,7]
[424416337,1780858259000,-500.0,0.00028768,2]
[424416342,1780858259000,-151.0,0.00028803,7]
[424416340,1780858259000,-2468.29,0.00028797,7]
[424416347,1780858259000,-169.59085308,0.00028808,2]
[424416339,1780858259000,-866.11,0.00028788,30]
[424416338,1780858259000,-871.79,0.00028788,30]
[424416349,1780858259000,-306.02801078,0.00028808,2]
[424416336,1780858259000,-180.4825,0.00028767,30]
[424416351,1780858259000,-391.95885997,0.00028808,2]
[424416348,1780858259000,-177.11354228,0.00028808,2]
[424416353,1780858259000,-178.20452821,0.00028808,2]
[424416357,1780858259000,-154.41054261,0.00028811,2]
[424416352,1780858259000,-237.12465724,0.00028808,2]
[424416358,1780858259000,-374.03276008,0.00028811,2]
[424416356,1780858259000,-324.47003218,0.00028811,2]
[424416359,1780858259000,-332.63044923,0.00028811,2]
[424416354,1780858259000,-230.29333487,0.0002881,2]
[424416355,1780858259000,-217.31433621,0.0002881,2]
[424416360,1780858259000,-197.15439443,0.00028811,2]
[424416362,1780858259000,-322.15136777,0.00028811,2]
[424416301,1780858259000,-1453.08,0.0002863,2]
[424416361,1780858259000,-330.61769847,0.00028811,2]
[424416350,1780858259000,-327.49193982,0.00028808,2]
[424416330,1780858259000,-866.11,0.00028756,7]
[424416363,1780858259000,-177.42558437,0.00028811,2]
[424416331,1780858259000,-615.03,0.00028767,2]
[424416300,1780858259000,-1453.08,0.0002863,7]
[424416304,1780858259000,-1453.22,0.0002863,2]
[424416305,1780858259000,-1453.22,0.0002863,30]
[424416309,1780858259000,-889.82,0.0002863,30]
[424416308,1780858259000,-2468.29,0.0002863,30]
[424416310,1780858259000,-871.79,0.00028661,7]
[424416320,1780858259000,-866.11,0.00028725,2]
[424416332,1780858259000,-500.0,0.00028767,2]
[424416312,1780858259000,-871.79,0.00028693,30]
[424416311,1780858259000,-866.11,0.00028661,7]
[424416313,1780858259000,-866.11,0.00028693,30]
[424416314,1780858259000,-1453.08,0.00028695,7]
[424416318,1780858259000,-769.15529704,0.00028716,2]
[424416321,1780858259000,-500.0,0.00028726,2]
[424416315,1780858259000,-1453.22,0.00028695,7]
[424416317,1780858259000,-500.0,0.00028706,2]
[424416334,1780858259000,-198.47,0.00028767,13]
[424416329,1780858259000,-871.79,0.00028756,7]
[424416323,1780858259000,-185.02,0.00028732,2]
[424416324,1780858259000,-644.0,0.00028732,2]
[424416328,1780858259000,-151.0,0.00028747,2]
[424416325,1780858259000,-644.0,0.00028732,2]
[424416327,1780858259000,-151.0,0.00028747,2]
[424416326,1780858259000,-707.0,0.00028739,3]
[424416316,1780858259000,-160.0,0.00028704,3]
[424416319,1780858259000,-871.79,0.00028725,2]
[424416322,1780858259000,-200.0,0.00028726,2]
[424416333,1780858259000,-217.48421691,0.00028767,2]
[424416400,1780858260000,-310.45210113,0.0002892,2]
[424416406,1780858260000,-404.16375283,0.0002892,2]
[424416401,1780858260000,-344.35758505,0.0002892,2]
[424416403,1780858260000,-216.84421401,0.0002892,2]
[424416402,1780858260000,-303.41005135,0.0002892,2]
[424416398,1780858260000,-341.35404838,0.0002892,2]
[424416407,1780858260000,-370.93031818,0.0002892,2]
[424416397,1780858260000,-171.98818732,0.0002892,2]
[424416408,1780858260000,-150.12863239,0.0002892,2]
[424416396,1780858260000,-173.85747034,0.0002892,2]
[424416399,1780858260000,-346.63525794,0.0002892,2]
[424416404,1780858260000,-189.8729245,0.0002892,2]
[424416413,1780858260000,-1500.0,0.00028943,15]
[424416409,1780858260000,-152.0,0.00028925,24]
[424416410,1780858260000,-1500.0,0.00028943,15]
[424416419,1780858260000,-866.11,0.00028947,7]
[424416412,1780858260000,-1500.0,0.00028943,15]
[424416411,1780858260000,-1500.0,0.00028943,15]
[424416416,1780858260000,-1500.0,0.00028943,15]
[424416420,1780858260000,-2468.29,0.00028964,2]
[424416417,1780858260000,-1513.349408,0.00028943,15]
[424416414,1780858260000,-1500.0,0.00028943,15]
[424416415,1780858260000,-1795.470355,0.00028943,15]
[424416418,1780858260000,-871.79,0.00028947,7]
[424416391,1780858260000,-189.85461583,0.0002892,2]
[424416421,1780858260000,-889.82,0.00028964,2]
[424416405,1780858260000,-425.37196626,0.0002892,2]
[424416387,1780858260000,-159.32247906,0.0002892,2]
[424416380,1780858260000,-871.79,0.00028883,30]
[424416392,1780858260000,-155.8845298,0.0002892,2]
[424416422,1780858260000,-40480.14800606,0.0002897,6]
[424416370,1780858260000,-159.08564272,0.00028811,2]
[424416366,1780858260000,-315.0570693,0.00028811,2]
[424416369,1780858260000,-203.2288323,0.00028811,2]
[424416365,1780858260000,-314.99824075,0.00028811,2]
[424416368,1780858260000,-361.23630503,0.00028811,2]
[424416367,1780858260000,-339.55161823,0.00028811,2]
[424416364,1780858260000,-162.39747399,0.00028811,2]
[424416372,1780858260000,-871.79,0.0002882,2]
[424416373,1780858260000,-866.11,0.0002882,2]
[424416374,1780858260000,-871.79,0.00028852,7]
[424416375,1780858260000,-866.11,0.00028852,7]
[424416376,1780858260000,-500.0,0.00028855,2]
[424416377,1780858260000,-150.0,0.00028855,2]
[424416378,1780858260000,-1453.08,0.00028859,2]
[424416382,1780858260000,-328.65227556,0.00028913,2]
[424416379,1780858260000,-1453.22,0.00028859,2]
[424416381,1780858260000,-866.11,0.00028883,30]
[424416383,1780858260000,-240.16408152,0.00028913,2]
[424416384,1780858260000,-156.64452099,0.00028913,2]
[424416394,1780858260000,-192.99918307,0.0002892,2]
[424416390,1780858260000,-207.50471004,0.0002892,2]
[424416385,1780858260000,-871.79,0.00028915,2]
[424416386,1780858260000,-866.11,0.00028915,2]
[424416388,1780858260000,-165.60745523,0.0002892,2]
[424416389,1780858260000,-152.4264996,0.0002892,2]
[424416393,1780858260000,-312.86183679,0.0002892,2]
[424416395,1780858260000,-331.22879936,0.0002892,2]
[424416423,1780858260000,-179.97120458,0.00028971,2]
[424416371,1780858260000,-291.0,0.0002882,30]
[424416430,1780858260000,-151.0,0.00028997,7]
[424416458,1780858260000,-2323.01,0.00029,2]
[424416459,1780858260000,-400330.90862958,0.00029,2]
[424416466,1780858260000,-500.0,0.00029,2]
[424416465,1780858260000,-500.0,0.00029,2]
[424416456,1780858260000,-10000.0,0.00029,2]
[424416462,1780858260000,-666.58968006,0.00029,2]
[424416464,1780858260000,-1807.46893549,0.00029,2]
[424416461,1780858260000,-2102.30423461,0.00029,2]
[424416460,1780858260000,-4027.77,0.00029,2]
[424416463,1780858260000,-150.0,0.00029,2]
[424416467,1780858260000,-479.03258016,0.00029,2]
[424416469,1780858260000,-527.18127303,0.00029,2]
[424416470,1780858260000,-500.0,0.00029,2]
[424416480,1780858260000,-158.0,0.00029,4]
[424416468,1780858260000,-3273.27374335,0.00029,3]
[424416477,1780858260000,-158.0,0.00029,4]
[424416479,1780858260000,-158.0,0.00029,4]
[424416475,1780858260000,-158.0,0.00029,4]
[424416478,1780858260000,-158.0,0.00029,4]
[424416471,1780858260000,-500.0,0.00029,2]
[424416473,1780858260000,-158.0,0.00029,4]
[424416474,1780858260000,-158.0,0.00029,4]
[424416472,1780858260000,-166.0,0.00029,4]
[424416476,1780858260000,-158.0,0.00029,4]
[424416481,1780858260000,-158.0,0.00029,4]
[424416483,1780858260000,-160.0,0.00029,4]
[424416428,1780858260000,-2878.0,0.00028989,16]
[424416457,1780858260000,-10000.0,0.00029,2]
[424416455,1780858260000,-50103.16,0.00029,2]
[424416482,1780858260000,-158.0,0.00029,4]
[424416446,1780858260000,-200.0,0.00029,2]
[424416450,1780858260000,-11183.58913113,0.00029,2]
[424416425,1780858260000,-194.000028,0.00028971,2]
[424416424,1780858260000,-164.76840062,0.00028971,2]
[424416426,1780858260000,-871.79,0.00028979,30]
[424416427,1780858260000,-866.11,0.00028979,30]
[424416431,1780858260000,-172.0,0.00028997,14]
[424416432,1780858260000,-200.0,0.00029,2]
[424416434,1780858260000,-200.0,0.00029,2]
[424416433,1780858260000,-200.0,0.00029,2]
[424416436,1780858260000,-200.0,0.00029,2]
[424416435,1780858260000,-200.0,0.00029,2]
[424416437,1780858260000,-200.0,0.00029,2]
[424416439,1780858260000,-200.0,0.00029,2]
[424416429,1780858260000,-615.03,0.00028995,2]
[424416438,1780858260000,-200.0,0.00029,2]
[424416441,1780858260000,-200.0,0.00029,2]
[424416452,1780858260000,-511.37048438,0.00029,2]
[424416449,1780858260000,-3153.66,0.00029,2]
[424416448,1780858260000,-10000.0,0.00029,2]
[424416447,1780858260000,-213.84,0.00029,2]
[424416444,1780858260000,-200.0,0.00029,2]
[424416451,1780858260000,-219.76923867,0.00029,2]
[424416445,1780858260000,-200.0,0.00029,2]
[424416443,1780858260000,-200.0,0.00029,2]
[424416454,1780858260000,-171.82,0.00029,2]
[424416453,1780858260000,-4790.95220949,0.00029,30]
[424416440,1780858260000,-200.0,0.00029,2]
[424416442,1780858260000,-200.0,0.00029,2]
[424416526,1780858261000,-834.0,0.00029262,30]
[424416519,1780858261000,-871.94,0.00029232,7]
[424416530,1780858261000,-683.0,0.00029262,30]
[424416520,1780858261000,-866.2,0.00029232,7]
[424416518,1780858261000,-615.03,0.00029224,2]
[424416511,1780858261000,-866.11,0.00029137,7]
[424416512,1780858261000,-1000.0,0.0002915,7]
[424416521,1780858261000,-317.5844836,0.00029233,2]
[424416515,1780858261000,-500.0,0.00029183,2]
[424416514,1780858261000,-866.11,0.00029169,30]
[424416513,1780858261000,-871.79,0.00029169,30]
[424416529,1780858261000,-646.0,0.00029262,30]
[424416525,1780858261000,-929.0,0.00029262,30]
[424416522,1780858261000,-6465.7005171,0.00029233,2]
[424416528,1780858261000,-711.0,0.00029262,30]
[424416524,1780858261000,-571.0,0.00029262,30]
[424416527,1780858261000,-2308.0,0.00029262,30]
[424416531,1780858261000,-1257.0,0.00029262,30]
[424416534,1780858261000,-707.0,0.00029273,4]
[424416532,1780858261000,-962.0,0.00029262,30]
[424416543,1780858261000,-889.81,0.00029299,7]
[424416533,1780858261000,-983.0,0.00029262,30]
[424416517,1780858261000,-866.11,0.00029201,2]
[424416539,1780858261000,-956.0,0.00029281,30]
[424416523,1780858261000,-188.457955,0.00029233,2]
[424416507,1780858261000,-2468.29,0.00029132,30]
[424416494,1780858261000,-266.13,0.00029014,30]
[424416508,1780858261000,-889.82,0.00029132,30]
[424416538,1780858261000,-2914.0,0.00029281,30]
[424416487,1780858261000,-157.0,0.00029,4]
[424416486,1780858261000,-157.0,0.00029,4]
[424416485,1780858261000,-157.0,0.00029,4]
[424416488,1780858261000,-157.0,0.00029,4]
[424416490,1780858261000,-151.0,0.00029007,60]
[424416493,1780858261000,-292.0,0.00029014,2]
[424416492,1780858261000,-866.11,0.0002901,2]
[424416489,1780858261000,-157.0,0.00029,4]
[424416491,1780858261000,-871.79,0.0002901,2]
[424416484,1780858261000,-157.0,0.00029,4]
[424416495,1780858261000,-963.14,0.00029014,2]
[424416497,1780858261000,-871.79,0.00029042,7]
[424416505,1780858261000,-173.9737543,0.0002913,20]
[424416503,1780858261000,-871.79,0.00029105,2]
[424416504,1780858261000,-866.11,0.00029105,2]
[424416499,1780858261000,-871.79,0.00029074,30]
[424416500,1780858261000,-866.11,0.00029074,30]
[424416502,1780858261000,-1000.0,0.00029103,7]
[424416498,1780858261000,-866.11,0.00029042,7]
[424416501,1780858261000,-517.07,0.000291,7]
[424416496,1780858261000,-288.95,0.00029014,2]
[424416506,1780858261000,-515.3123659,0.0002913,5]
[424416509,1780858261000,-150.0,0.00029137,2]
[424416510,1780858261000,-871.79,0.00029137,7]
[424416516,1780858261000,-871.79,0.00029201,2]
[424416536,1780858261000,-200.0,0.00029274,2]
[424416537,1780858261000,-152.0,0.00029281,25]
[424416583,1780858261000,-293.44827858,0.00029674,2]
[424416570,1780858261000,-889.82,0.00029634,30]
[424416572,1780858261000,-152.0,0.00029637,26]
[424416573,1780858261000,-254.92170546,0.00029639,2]
[424416574,1780858261000,-500.0,0.0002966,2]
[424416580,1780858261000,-246.53734552,0.00029674,2]
[424416577,1780858261000,-544.82384115,0.00029671,2]
[424416578,1780858261000,-479.26140738,0.00029671,2]
[424416576,1780858261000,-478.84188156,0.00029671,2]
[424416579,1780858261000,-521.71201595,0.00029671,2]
[424416581,1780858261000,-339.18170616,0.00029674,2]
[424416571,1780858261000,-2468.3,0.00029634,30]
[424416582,1780858261000,-354.22708455,0.00029674,2]
[424416584,1780858261000,-459.04201618,0.00029674,2]
[424416586,1780858261000,-260.26994614,0.00029674,2]
[424416590,1780858261000,-474.24931448,0.00029674,2]
[424416585,1780858261000,-155.49246473,0.00029674,2]
[424416588,1780858261000,-190.09362179,0.00029674,2]
[424416591,1780858261000,-237.39890735,0.00029674,2]
[424416592,1780858261000,-356.40905642,0.00029674,2]
[424416587,1780858261000,-491.23790973,0.00029674,2]
[424416589,1780858261000,-587.93828995,0.00029674,2]
[424416593,1780858261000,-154.76020887,0.00029674,2]
[424416594,1780858261000,-269.13223752,0.00029675,2]
[424416595,1780858261000,-204.01096505,0.00029676,2]
[424416535,1780858261000,-500.0,0.00029274,2]
[424416567,1780858261000,-2000.0,0.00029567,10]
[424416566,1780858261000,-482.18,0.00029538,2]
[424416575,1780858261000,-179.97120458,0.00029666,2]
[424416562,1780858261000,-1000.0,0.00029485,7]
[424416542,1780858261000,-150.0,0.0002929,2]
[424416540,1780858261000,-1524.0,0.00029281,30]
[424416541,1780858261000,-483.0,0.00029281,30]
[424416545,1780858261000,-889.82,0.00029299,7]
[424416555,1780858261000,-644.0,0.00029424,2]
[424416556,1780858261000,-300.0,0.0002944,10]
[424416547,1780858261000,-179.97120458,0.00029319,2]
[424416544,1780858261000,-2468.29,0.00029299,7]
[424416565,1780858261000,-150.0,0.00029534,2]
[424416551,1780858261000,-395.91,0.00029424,2]
[424416550,1780858261000,-644.0,0.00029419,2]
[424416549,1780858261000,-275.24857409,0.000294,2]
[424416552,1780858261000,-575.06,0.00029424,2]
[424416546,1780858261000,-3026.0,0.00029307,7]
[424416553,1780858261000,-481.28,0.00029424,2]
[424416554,1780858261000,-642.88,0.00029424,2]
[424416558,1780858261000,-615.03,0.00029452,2]
[424416568,1780858261000,-750.0,0.00029576,7]
[424416569,1780858261000,-356.0,0.00029612,14]
[424416563,1780858261000,-517.07,0.000295,7]
[424416560,1780858261000,-889.82,0.00029467,2]
[424416559,1780858261000,-2468.29,0.00029467,2]
[424416561,1780858261000,-2468.3,0.00029467,2]
[424416557,1780858261000,-160.0,0.0002945,3]
[424416548,1780858261000,-600.0,0.00029384,60]
[424416564,1780858261000,-1000.0,0.00029512,7]
[424416631,1780858262000,-615.03,0.0002968,2]
[424416635,1780858262000,-800.0,0.00029688,11]
[424416637,1780858262000,-800.0,0.00029688,11]
[424416634,1780858262000,-664.60168073,0.00029688,11]
[424416628,1780858262000,-242.59994845,0.00029676,2]
[424416630,1780858262000,-150.24837656,0.00029676,2]
[424416627,1780858262000,-318.17128543,0.00029676,2]
[424416632,1780858262000,-800.0,0.00029688,11]
[424416629,1780858262000,-207.98146474,0.00029676,2]
[424416621,1780858262000,-509.32742735,0.00029676,2]
[424416636,1780858262000,-800.0,0.00029688,11]
[424416633,1780858262000,-800.0,0.00029688,11]
[424416639,1780858262000,-800.0,0.00029688,11]
[424416652,1780858262000,-903.06,0.00029781,7]
[424416647,1780858262000,-480.32816304,0.00029781,2]
[424416638,1780858262000,-800.0,0.00029688,11]
[424416641,1780858262000,-800.0,0.00029688,11]
[424416643,1780858262000,-500.0,0.00029721,10]
[424416648,1780858262000,-206.88713616,0.00029781,2]
[424416640,1780858262000,-800.0,0.00029688,11]
[424416644,1780858262000,-500.0,0.00029754,10]
[424416642,1780858262000,-800.0,0.00029688,11]
[424416646,1780858262000,-492.97841334,0.00029781,2]
[424416645,1780858262000,-232.19492743,0.00029781,2]
[424416650,1780858262000,-1144.86,0.00029781,7]
[424416619,1780858262000,-228.21265831,0.00029676,2]
[424416649,1780858262000,-313.28904198,0.00029781,2]
[424416620,1780858262000,-257.8306301,0.00029676,2]
[424416596,1780858262000,-202.99762772,0.00029676,2]
[424416625,1780858262000,-208.68037938,0.00029676,2]
[424416598,1780858262000,-434.62867242,0.00029676,2]
[424416597,1780858262000,-460.58666975,0.00029676,2]
[424416599,1780858262000,-281.12651433,0.00029676,2]
[424416600,1780858262000,-200.11169961,0.00029676,2]
[424416604,1780858262000,-308.82108522,0.00029676,2]
[424416602,1780858262000,-486.70504827,0.00029676,2]
[424416601,1780858262000,-211.3441997,0.00029676,2]
[424416605,1780858262000,-218.62495036,0.00029676,2]
[424416603,1780858262000,-162.9570461,0.00029676,2]
[424416606,1780858262000,-561.04914012,0.00029676,2]
[424416608,1780858262000,-394.30878887,0.00029676,2]
[424416607,1780858262000,-498.94567384,0.00029676,2]
[424416611,1780858262000,-324.79494798,0.00029676,2]
[424416610,1780858262000,-483.22705166,0.00029676,2]
[424416609,1780858262000,-495.92654771,0.00029676,2]
[424416613,1780858262000,-259.65305661,0.00029676,2]
[424416615,1780858262000,-161.75227757,0.00029676,2]
[424416612,1780858262000,-255.87257775,0.00029676,2]
[424416614,1780858262000,-472.49736113,0.00029676,2]
[424416617,1780858262000,-472.58560395,0.00029676,2]
[424416616,1780858262000,-248.25993879,0.00029676,2]
[424416618,1780858262000,-354.85116874,0.00029676,2]
[424416624,1780858262000,-184.95632395,0.00029676,2]
[424416626,1780858262000,-258.68043565,0.00029676,2]
[424416622,1780858262000,-406.4576646,0.00029676,2]
[424416623,1780858262000,-541.85445755,0.00029676,2]
[424416651,1780858262000,-1180.77,0.00029781,7]
[424416707,1780858262000,-920.5938,0.00029863,7]
[424416662,1780858262000,-379.70923166,0.00029788,2]
[424416682,1780858262000,-556.39547728,0.00029788,2]
[424416683,1780858262000,-294.60846542,0.00029788,2]
[424416688,1780858262000,-2468.3,0.00029802,7]
[424416687,1780858262000,-889.82,0.00029802,7]
[424416692,1780858262000,-500.0,0.00029836,30]
[424416695,1780858262000,-1030.77,0.00029847,30]
[424416691,1780858262000,-500.0,0.00029836,30]
[424416689,1780858262000,-707.0,0.00029807,4]
[424416698,1780858262000,-920.5938,0.00029863,7]
[424416690,1780858262000,-200.0,0.00029822,2]
[424416694,1780858262000,-527.23480607,0.00029836,30]
[424416696,1780858262000,-920.5938,0.00029863,7]
[424416697,1780858262000,-920.5938,0.00029863,7]
[424416699,1780858262000,-920.5938,0.00029863,7]
[424416703,1780858262000,-920.5938,0.00029863,7]
[424416705,1780858262000,-920.5938,0.00029863,7]
[424416702,1780858262000,-920.5938,0.00029863,7]
[424416700,1780858262000,-920.5938,0.00029863,7]
[424416701,1780858262000,-920.5938,0.00029863,7]
[424416710,1780858262000,-920.5938,0.00029863,7]
[424416704,1780858262000,-920.5938,0.00029863,7]
[424416709,1780858262000,-920.5938,0.00029863,7]
[424416708,1780858262000,-920.5938,0.00029863,7]
[424416706,1780858262000,-920.5938,0.00029863,7]
[424416653,1780858262000,-1355.47,0.00029781,7]
[424416685,1780858262000,-300.25726477,0.00029788,2]
[424416684,1780858262000,-274.59338482,0.00029788,2]
[424416693,1780858262000,-500.0,0.00029836,30]
[424416677,1780858262000,-227.84164873,0.00029788,2]
[424416680,1780858262000,-606.24562924,0.00029788,2]
[424416661,1780858262000,-415.00942008,0.00029788,2]
[424416655,1780858262000,-318.64495811,0.00029788,2]
[424416658,1780858262000,-234.76916138,0.00029788,2]
[424416659,1780858262000,-178.15098982,0.00029788,2]
[424416656,1780858262000,-331.21491046,0.00029788,2]
[424416657,1780858262000,-288.4875697,0.00029788,2]
[424416660,1780858262000,-304.8529992,0.00029788,2]
[424416664,1780858262000,-469.29275519,0.00029788,2]
[424416674,1780858262000,-465.67815169,0.00029788,2]
[424416666,1780858262000,-496.84319905,0.00029788,2]
[424416671,1780858262000,-512.03107256,0.00029788,2]
[424416667,1780858262000,-174.51597434,0.00029788,2]
[424416654,1780858262000,-2322.0,0.00029787,3]
[424416669,1780858262000,-347.71494069,0.00029788,2]
[424416663,1780858262000,-311.76905961,0.00029788,2]
[424416686,1780858262000,-1030.77,0.000298,30]
[424416676,1780858262000,-516.53637758,0.00029788,2]
[424416678,1780858262000,-433.68842802,0.00029788,2]
[424416681,1780858262000,-638.05794938,0.00029788,2]
[424416675,1780858262000,-455.11507703,0.00029788,2]
[424416679,1780858262000,-379.74584899,0.00029788,2]
[424416673,1780858262000,-519.95288691,0.00029788,2]
[424416670,1780858262000,-343.97637464,0.00029788,2]
[424416668,1780858262000,-223.28085492,0.00029788,2]
[424416665,1780858262000,-385.99836613,0.00029788,2]
[424416672,1780858262000,-165.03593474,0.00029788,2]